bitfinex/quotes_SOLUSD_20241222
["timestamp","ask_amount","ask_price","bid_price","bid_amount"]
[1734835402277,1.3737,181.98,181.84,0.82448751]
[1734835402483,1.03059128,181.97,181.84,0.82448751]
[1734835402684,2.3901,181.95,181.84,0.82448751]
[1734835402866,21.03072904,181.94,181.84,0.82448751]
[1734835403066,21.03072904,181.94,181.82,0.82463046]
[1734835404197,21.3741,181.93,181.82,0.82463046]
[1734835404395,1.0309112,181.92,181.82,0.82463046]
[1734835404869,20.0,181.93,181.83,23.776884]
[1734835405062,2.3901,181.95,181.85,23.776884]
[1734835405250,20.0,181.93,181.86,0.82444032]
[1734835405459,2.3901,181.95,181.86,0.82444032]
[1734835405689,22.3901,181.95,181.86,0.82444032]
[1734835406386,2.3901,181.95,181.86,0.82444032]
[1734835406590,20.0,181.93,181.86,0.82444032]
[1734835407081,2.3901,181.95,181.86,0.82444032]
[1734835407291,20.0,181.93,181.86,0.82444032]
[1734835407886,2.3901,181.95,181.86,0.82444032]
[1734835408190,20.0,181.93,181.86,0.82444032]
[1734835408399,1.03069905,181.92,181.82,0.82455924]
[1734835411798,0.10783812,181.83,181.82,24.60144324]
[1734835411962,0.10783812,181.83,181.82,0.82455924]
[1734835412393,0.10783812,181.83,181.81,0.6659441]
[1734835413192,0.10783812,181.83,181.82,0.82475134]
[1734835413864,0.10783812,181.83,181.82,24.60163534]
[1734835418207,0.10783812,181.83,181.81,0.6659441]
[1734835419409,0.10783812,181.83,181.82,0.82465688]
[1734835419705,0.10783812,181.83,181.82,24.60154088]
[1734835420794,0.10783812,181.83,181.82,0.82465688]
[1734835421709,0.10783812,181.83,181.82,24.60154088]
[1734835422205,0.10783812,181.83,181.82,45.51987337]
[1734835422408,0.11395035,181.84,181.83,23.776884]
[1734835422583,0.11395035,181.84,181.83,44.69521649]
[1734835422784,0.11395035,181.84,181.83,45.51969996]
[1734835423885,0.11395035,181.84,181.83,24.60136747]
[1734835424584,0.11395035,181.84,181.83,45.51969996]
[1734835426094,0.11395035,181.84,181.83,45.64518996]
[1734835426397,0.11395035,181.84,181.83,51.69488996]
[1734835427710,0.11395035,181.84,181.83,51.56939996]
[1734835427914,0.11395035,181.84,181.83,51.69488996]
[1734835428112,1.5295,182.01,181.87,43.776884]
[1734835428312,1.5295,182.01,181.91,44.69521649]
[1734835428493,2.3902,182.03,181.93,23.776884]
[1734835428697,2.3902,182.03,181.95,23.776884]
[1734835429098,1.0300913,182.02,181.95,23.776884]
[1734835429298,1.0300913,182.02,181.92,0.82416888]
[1734835430299,1.0300913,182.02,181.9,0.82424413]
[1734835430503,22.4035913,182.02,181.9,0.82424413]
[1734835430817,22.4035913,182.02,181.88,0.8243237]
[1734835431023,20.0,181.98,181.87,6.621]
[1734835431227,1.03060354,181.97,181.87,6.621]
[1734835431717,0.11907995,181.89,181.88,0.82443595]
[1734835432226,0.11907995,181.89,181.88,24.60131995]
[1734835432523,0.11907995,181.89,181.88,0.82443595]
[1734835432716,0.11907995,181.89,181.84,0.82453623]
[1734835434704,0.11907995,181.89,181.85,0.82462576]
[1734835435711,0.11907995,181.89,181.83,0.82462965]
[1734835438024,20.11907995,181.89,181.81,0.6659441]
[1734835438320,1.0310947,181.88,181.81,0.6659441]
[1734835439118,21.71677995,181.89,181.81,0.6659441]
[1734835439516,1.03099943,181.88,181.81,0.6659441]
[1734835442402,0.11907995,181.89,181.83,23.776884]
[1734835442727,0.11907995,181.89,181.84,0.82459356]
[1734835443621,0.11907995,181.89,181.85,44.69521649]
[1734835443824,0.11907995,181.89,181.86,0.82444203]
[1734835447100,0.11907995,181.89,181.87,23.776884]
[1734835447306,0.11907995,181.89,181.88,24.60125518]
[1734835448634,0.11907995,181.89,181.88,0.82437118]
[1734835448835,0.11907995,181.89,181.85,0.82454464]
[1734835449413,0.11907995,181.89,181.86,23.776884]
[1734835449743,0.11907995,181.89,181.88,44.69521649]
[1734835450117,0.10275096,181.9,181.89,0.12549]
[1734835450118,3.091e-05,181.9,181.89,0.12549]
[1734835450345,0.10563676,181.92,181.91,1.5049]
[1734835450648,0.10563676,181.92,181.91,47.14965022]
[1734835450820,2.3902,182.06,181.94,23.902374]
[1734835451014,6.32784505,182.11,181.96,23.776884]
[1734835451213,6.32784505,182.11,181.99,20.91833249]
[1734835451537,6.32784505,182.11,182.0,24.60067251]
[1734835451833,0.11569747,182.01,182.0,24.60067251]
[1734835452619,0.11569747,182.01,182.0,45.519005]
[1734835452810,0.10980698,182.02,182.0,47.023905]
[1734835453019,6.98e-06,182.02,182.01,64.74850649]
[1734835453218,2.922e-05,182.03,182.02,23.902374]
[1734835453413,5.758e-05,182.04,182.02,45.64373098]
[1734835453746,5.758e-05,182.04,182.03,44.82070649]
[1734835454833,5.758e-05,182.04,182.03,44.69521649]
[1734835456246,5.758e-05,182.04,182.02,0.82302449]
[1734835456847,5.758e-05,182.04,182.0,0.82376742]
[1734835457747,5.758e-05,182.04,182.01,0.82387168]
[1734835458217,5.758e-05,182.04,182.01,21.74220417]
[1734835459217,5.758e-05,182.04,182.02,23.776884]
[1734835459424,5.758e-05,182.04,182.03,24.600577]
[1734835459749,5.758e-05,182.04,182.03,45.51890949]
[1734835462471,5.758e-05,182.04,182.03,45.64439949]
[1734835462962,5.758e-05,182.04,182.03,0.823693]
[1734835463172,5.758e-05,182.04,182.01,0.82381331]
[1734835464273,5.758e-05,182.04,181.99,0.82387063]
[1734835465276,5.758e-05,182.04,181.93,21.74229307]
[1734835465446,20.0,182.03,181.93,21.74229307]
[1734835465775,21.03017323,182.03,181.93,0.82396058]
[1734835465937,21.03017323,182.03,181.91,0.82426024]
[1734835466138,21.03017323,182.03,181.89,0.82430224]
[1734835466361,20.0,181.99,181.87,0.82440113]
[1734835466569,20.0,181.99,181.84,1.5507]
[1734835466570,2.40427355,181.98,181.84,23.29349133]
[1734835467565,2.40427355,181.98,181.86,20.91833249]
[1734835467775,1.03057355,181.98,181.87,0.82439516]
[1734835467965,1.03057355,181.98,181.88,23.776884]
[1734835468161,1.03057355,181.98,181.89,0.82437598]
[1734835468390,1.03057355,181.98,181.88,23.776884]
[1734835468593,1.03057355,181.98,181.86,0.82445829]
[1734835468771,2.63467355,181.98,181.84,34.7916375]
[1734835469490,1.3738,181.97,181.84,34.7916375]
[1734835469679,1.03073594,181.96,181.84,34.7916375]
[1734835470186,1.03073594,181.96,181.85,23.776884]
[1734835471183,1.03073594,181.96,181.86,0.82453158]
[1734835471884,0.10042633,181.87,181.86,0.82453158]
[1734835472581,0.10042633,181.87,181.86,58.56850061]
[1734835474211,0.10042633,181.87,181.86,58.69399061]
[1734835474375,0.10042633,181.87,181.86,72.44079061]
[1734835476394,2.633e-05,181.87,181.86,72.44079061]
[1734835480079,2.633e-05,181.87,181.86,58.56850061]
[1734835481171,2.633e-05,181.87,181.86,34.79161661]
[1734835482305,2.633e-05,181.87,181.86,58.56850061]
[1734835484008,2.633e-05,181.87,181.86,58.69399061]
[1734835486207,0.11363517,181.91,181.9,43.902374]
[1734835486386,0.11363517,181.91,181.9,78.69347257]
[1734835486590,0.11363517,181.91,181.9,78.56798257]
[1734835487104,0.11363517,181.91,181.9,58.56798257]
[1734835488113,0.11363517,181.91,181.9,45.49237859]
[1734835489400,0.11363517,181.91,181.9,24.60089754]
[1734835489609,0.11363517,181.91,181.9,0.82401354]
[1734835489905,0.11363517,181.91,181.89,0.82433686]
[1734835490599,0.11363517,181.91,181.87,20.89148105]
[1734835490600,0.11363517,181.91,181.85,21.71591808]
[1734835490782,0.11363517,181.91,181.85,0.82443703]
[1734835491290,0.11363517,181.91,181.85,21.71591808]
[1734835491506,0.11363517,181.91,181.85,0.82443703]
[1734835491708,0.11919792,181.86,181.85,21.71591808]
[1734835492593,0.11919792,181.86,181.85,0.82443703]
[1734835492802,0.11919792,181.86,181.84,0.82459766]
[1734835493791,0.11919792,181.86,181.85,0.82460933]
[1734835494814,0.11919792,181.86,181.84,23.776884]
[1734835495108,0.11919792,181.86,181.85,0.82459675]
[1734835495409,0.11919792,181.86,181.78,0.82472533]
[1734835495410,2.50939792,181.86,181.78,0.82472533]
[1734835495777,20.0,181.83,181.76,0.82491168]
[1734835496215,20.0,181.83,181.76,21.71639273]
[1734835496513,1.6511,181.85,181.76,21.71639273]
[1734835496889,1.6511,181.85,181.76,0.82491168]
[1734835497485,1.6511,181.85,181.76,21.71639273]
[1734835498609,1.6511,181.85,181.76,0.82491168]
[1734835498817,1.6511,181.85,181.77,0.8249091]
[1734835499600,20.0,181.83,181.75,0.82491472]
[1734835500759,1.03133657,181.82,181.75,0.82491472]
[1734835502040,20.0,181.84,181.75,21.71639577]
[1734835502238,21.0311324,181.83,181.72,0.82490592]
[1734835503723,24.024284,181.82,181.68,0.82514233]
[1734835503925,20.0,181.79,181.68,1.30665903]
[1734835504243,1.03168851,181.78,181.68,0.4815167]
[1734835504439,2.3902,181.77,181.68,0.4815167]
[1734835504754,1.03185792,181.76,181.68,0.4815167]
[1734835505909,1.3755,181.75,181.68,0.4815167]
[1734835506110,1.03187715,181.74,181.68,0.4815167]
[1734835506308,1.03188686,181.78,181.68,21.37299775]
[1734835506522,1.03155583,181.79,181.69,24.60212867]
[1734835506921,2.6376,181.82,181.69,24.60212867]
[1734835507124,20.0,181.79,181.69,24.60212867]
[1734835507300,1.03156979,181.78,181.69,24.60212867]
[1734835507499,1.03157271,181.81,181.7,20.89148105]
[1734835507716,0.2474,181.82,181.72,23.776884]
[1734835507911,0.2474,181.82,181.74,23.776884]
[1734835508099,2.50939792,181.86,181.76,23.776884]
[1734835508307,0.11919792,181.86,181.78,23.776884]
[1734835508499,1.03111361,181.85,181.73,23.776884]
[1734835508699,1.03111361,181.85,181.75,23.776884]
[1734835508930,1.03111361,181.85,181.76,0.82498841]
[1734835509907,1.03111361,181.85,181.72,20.89148105]
[1734835509908,1.03111361,181.85,181.74,23.776884]
[1734835510229,1.03111361,181.85,181.76,23.776884]
[1734835510812,0.11919792,181.86,181.78,23.776884]
[1734835511012,0.11919792,181.86,181.8,23.776884]
[1734835511314,0.11919792,181.86,181.81,0.82474231]
[1734835511726,0.11919792,181.86,181.82,23.776884]
[1734835511727,0.12084713,181.83,181.82,23.776884]
[1734835511911,0.12084713,181.83,181.82,57.79752265]
[1734835512101,0.12084713,181.83,181.82,57.92301265]
[1734835512432,0.12084713,181.83,181.82,23.776884]
[1734835513201,0.12084713,181.83,181.81,0.82474231]
[1734835513635,0.12084713,181.83,181.8,23.776884]
[1734835513839,0.12084713,181.83,181.76,6.2256]
[1734835514219,0.12084713,181.83,181.76,7.05062534]
[1734835514917,0.12084713,181.83,181.79,34.02063865]
[1734835515114,0.12084713,181.83,181.81,34.02063865]
[1734835515312,0.12084713,181.83,181.82,24.60155146]
[1734835515611,0.12084713,181.83,181.82,0.82466746]
[1734835515839,0.12084713,181.83,181.81,23.776884]
[1734835516329,0.12084713,181.83,181.82,0.82482958]
[1734835516531,0.12084713,181.83,181.79,23.776884]
[1734835516700,0.12084713,181.83,181.8,0.82477952]
[1734835518226,0.12084713,181.83,181.81,23.776884]
[1734835518427,0.12084713,181.83,181.81,24.60169022]
[1734835519046,0.12084713,181.83,181.82,34.02063865]
[1734835519351,0.12084713,181.83,181.82,57.79752265]
[1734835519513,0.12084713,181.83,181.82,58.62202312]
[1734835521520,2.3902,182.0,181.83,31.978374]
[1734835521720,14.82170723,182.1,181.88,34.14612865]
[1734835521721,1.3733,182.04,181.88,34.14612865]
[1734835521916,9.142e-05,181.9,181.89,92.7677943]
[1734835522150,9.142e-05,181.9,181.89,91.9436513]
[1734835522334,1.03006051,182.09,181.91,1.73819]
[1734835522646,1.373,182.08,181.93,57.79752265]
[1734835522958,1.373,182.08,181.92,0.82395346]
[1734835522959,1.03013757,182.07,181.95,23.776884]
[1734835523679,1.3731,182.06,181.88,34.02063865]
[1734835523854,1.03046498,182.05,181.88,23.776884]
[1734835524041,23.776884,182.04,181.88,24.60124507]
[1734835524245,23.776884,182.04,181.86,1.6127]
[1734835524246,3.9089,182.0,181.86,1.6127]
[1734835524558,1.03068219,181.99,181.85,7.28784575]
[1734835524847,1.03068219,181.99,181.85,0.82454575]
[1734835524848,23.776884,181.98,181.85,0.82454575]
[1734835525062,20.0,181.95,181.82,0.82450336]
[1734835525231,1.03078436,181.94,181.82,0.82450336]
[1734835525732,1.03078436,181.94,181.81,8.076]
[1734835525733,1.03078436,181.94,181.81,6.4633]
[1734835526239,1.3741,181.93,181.81,7.28809005]
[1734835526438,1.03088032,181.92,181.81,7.28809005]
[1734835526834,1.03088032,181.92,181.81,41.3087287]
[1734835527252,1.03088032,181.92,181.82,23.776884]
[1734835527460,1.03082821,181.94,181.84,23.776884]
[1734835529870,2.40482821,181.94,181.83,0.82459912]
[1734835530166,2.40482821,181.94,181.83,23.776884]
[1734835530669,21.03074099,181.97,181.84,34.84523144]
[1734835530865,21.03074099,181.97,181.85,23.776884]
[1734835531211,21.03074099,181.97,181.87,23.776884]
[1734835531463,21.03074099,181.97,181.85,23.776884]
[1734835531768,0.11452949,181.88,181.86,23.776884]
[1734835532444,0.11452949,181.88,181.85,0.82457568]
[1734835532856,0.11452949,181.88,181.86,23.776884]
[1734835533067,0.11452949,181.88,181.87,24.60136844]
[1734835533246,0.11452949,181.88,181.87,58.62200709]
[1734835533566,0.11452949,181.88,181.87,24.60136844]
[1734835534349,0.11452949,181.88,181.87,58.62200709]
[1734835534738,0.11452949,181.88,181.87,24.60136844]
[1734835537988,0.11452949,181.88,181.87,0.82448444]
[1734835538296,0.11452949,181.88,181.85,0.82457963]
[1734835538664,0.11452949,181.88,181.87,34.02063865]
[1734835539161,0.11452949,181.88,181.87,58.62185842]
[1734835539577,2.949e-05,181.88,181.87,58.74734842]
[1734835539776,9.993e-05,181.89,181.88,23.902374]
[1734835539974,7.13e-06,181.9,181.88,91.9436513]
[1734835540179,7.13e-06,181.9,181.89,106.51218995]
[1734835540379,7.13e-06,181.9,181.89,57.79752265]
[1734835540588,7.13e-06,181.9,181.89,58.62176246]
[1734835540790,7.13e-06,181.9,181.89,24.60112381]
[1734835542294,7.13e-06,181.9,181.83,34.84508658]
[1734835542583,7.13e-06,181.9,181.85,34.02063865]
[1734835542801,7.13e-06,181.9,181.86,0.8244771]
[1734835543771,7.13e-06,181.9,181.87,0.82452458]
[1734835544767,7.13e-06,181.9,181.88,0.82444467]
[1734835544969,7.13e-06,181.9,181.86,0.82450829]
[1734835545174,7.13e-06,181.9,181.84,23.776884]
[1734835545467,7.13e-06,181.9,181.83,0.82456406]
[1734835546220,7.13e-06,181.9,181.81,0.82469426]
[1734835546696,1.03087245,181.89,181.81,0.82469426]
[1734835546891,7.13e-06,181.9,181.81,0.82469426]
[1734835547098,1.03084708,181.9,181.81,0.82469426]
[1734835547601,7.13e-06,181.9,181.84,34.02063865]
[1734835547773,7.13e-06,181.9,181.86,23.776884]
[1734835548099,7.13e-06,181.9,181.87,0.82450065]
[1734835548997,7.13e-06,181.9,181.88,23.776884]
[1734835549199,7.13e-06,181.9,181.89,24.60120069]
[1734835550077,7.13e-06,181.9,181.89,0.82431669]
[1734835550265,7.13e-06,181.9,181.88,23.776884]
[1734835550603,7.13e-06,181.9,181.89,24.60133808]
[1734835550973,7.13e-06,181.9,181.87,0.82448298]
[1734835551300,7.13e-06,181.9,181.85,0.82457943]
[1734835551871,0.1062853,181.86,181.85,0.82457943]
[1734835552086,0.1062853,181.86,181.82,34.02063865]
[1734835552087,0.1062853,181.86,181.83,0.82463073]
[1734835552292,0.1062853,181.86,181.84,23.776884]
[1734835552570,0.1062853,181.86,181.84,24.60151576]
[1734835554705,0.1062853,181.86,181.79,0.82471039]
[1734835555072,0.1062853,181.86,181.77,0.8248911]
[1734835555701,0.1062853,181.86,181.74,0.82501294]
[1734835556299,1.3747,181.85,181.72,0.82500798]
[1734835556508,20.0,181.82,181.72,0.82500798]
[1734835556670,21.03154615,181.81,181.69,0.82514007]
[1734835557006,21.03154615,181.81,181.68,0.4815167]
[1734835557178,20.0,181.77,181.68,0.4815167]
[1734835557373,1.03176641,181.76,181.68,0.4815167]
[1734835557613,20.0,181.77,181.69,0.8254052]
[1734835557913,1.03158318,181.76,181.68,0.4815167]
[1734835558079,1.0316846,181.8,181.68,1.30686438]
[1734835558709,1.3752,181.79,181.68,1.30686438]
[1734835558909,1.0316969,181.78,181.68,1.30686438]
[1734835559113,1.0316969,181.78,181.68,0.4815167]
[1734835559283,20.0,181.74,181.68,0.4815167]
[1734835559595,20.0,181.72,181.68,0.4815167]
[1734835560174,20.0,181.74,181.68,0.4815167]
[1734835560394,1.03196381,181.73,181.68,0.4815167]
[1734835561301,1.3757,181.72,181.68,0.4815167]
[1734835561500,20.0,181.69,181.68,0.4815167]
[1734835562795,2.61548562,181.76,181.68,0.4815167]
[1734835563603,1.5835,181.76,181.68,1.30694583]
[1734835563819,2.3902,181.81,181.7,34.02063865]
[1734835564102,1.03137569,181.8,181.71,24.60198455]
[1734835564305,1.03143675,181.83,181.71,58.6226232]
[1734835565509,1.03140366,181.85,181.73,40.29093865]
[1734835565710,1.03140366,181.83,181.74,24.60192451]
[1734835565917,1.03140335,181.85,181.74,24.60192451]
[1734835566101,2.40610335,181.85,181.74,24.60192451]
[1734835566814,20.0,181.83,181.74,24.60192451]
[1734835567487,20.0,181.83,181.74,58.62256316]
[1734835567693,1.03140335,181.85,181.74,58.62256316]
[1734835567889,9.62030156,181.86,181.74,58.62256316]
[1734835568386,8.58910187,181.86,181.76,23.776884]
[1734835568594,8.58910187,181.86,181.78,23.776884]
[1734835568797,8.58910187,181.86,181.79,0.82487599]
[1734835569415,8.58910187,181.86,181.8,23.776884]
[1734835569707,8.58910187,181.86,181.82,23.776884]
[1734835570019,8.58910187,181.86,181.83,7.35742617]
[1734835571924,0.10353058,181.84,181.83,31.13431017]
[1734835573220,0.10353058,181.84,181.83,65.15494882]
[1734835574922,0.10353058,181.84,181.83,31.13431017]
[1734835576600,0.10353058,181.84,181.83,0.82462617]
[1734835576801,0.10353058,181.84,181.79,6.3078]
[1734835576802,0.10353058,181.84,181.8,0.82475414]
[1734835577529,0.10353058,181.84,181.82,34.02063865]
[1734835577829,0.10353058,181.84,181.83,34.84519329]
[1734835578200,0.10353058,181.84,181.83,58.62207729]
[1734835579624,0.1119082,181.85,181.84,37.650674]
[1734835579795,0.1119082,181.85,181.84,77.97911265]
[1734835579996,3.69e-06,181.86,181.85,1.68559]
[1734835580319,5.837e-05,181.87,181.86,23.902374]
[1734835580524,5.837e-05,181.87,181.86,58.74714603]
[1734835581027,5.837e-05,181.87,181.86,58.62165603]
[1734835581632,5.837e-05,181.87,181.86,0.82413338]
[1734835582129,5.837e-05,181.87,181.85,0.82454903]
[1734835582626,5.837e-05,181.87,181.85,34.84518768]
[1734835582808,5.837e-05,181.87,181.85,0.82454903]
[1734835583331,5.837e-05,181.87,181.86,23.776884]
[1734835585432,5.837e-05,181.87,181.85,0.82454903]
[1734835585802,5.837e-05,181.87,181.81,0.82463422]
[1734835586609,5.837e-05,181.87,181.81,34.84527287]
[1734835587315,5.837e-05,181.87,181.82,23.776884]
[1734835587512,5.837e-05,181.87,181.84,23.776884]
[1734835587718,5.837e-05,181.87,181.85,0.8246281]
[1734835588750,5.837e-05,181.87,181.84,23.776884]
[1734835589243,5.837e-05,181.87,181.85,0.82463706]
[1734835589838,5.837e-05,181.87,181.82,0.82463273]
[1734835590830,5.837e-05,181.87,181.8,0.82475282]
[1734835591441,5.837e-05,181.87,181.81,23.776884]
[1734835591607,5.837e-05,181.87,181.82,0.8247763]
[1734835591811,0.09986741,181.83,181.81,24.60166284]
[1734835592033,0.09986741,181.83,181.8,0.82480888]
[1734835592348,0.09986741,181.83,181.78,23.776884]
[1734835592540,0.09986741,181.83,181.79,0.8249418]
[1734835593053,0.09986741,181.83,181.8,23.776884]
[1734835593349,0.09986741,181.83,181.82,23.776884]
[1734835594352,0.09986741,181.83,181.82,57.79752265]
[1734835594512,0.09986741,181.83,181.82,57.92301265]
[1734835594711,0.09986741,181.83,181.82,64.49101265]
[1734835594933,0.09695878,181.88,181.86,23.902374]
[1734835595152,1.03025065,182.03,181.88,0.12549]
[1734835595332,5.3433,182.04,181.89,54.9702287]
[1734835595533,5.3433,182.04,181.89,88.99086735]
[1734835595958,1.0301321,182.03,181.89,88.99086735]
[1734835596252,5.3433,182.04,181.89,88.99086735]
[1734835596568,20.0,182.01,181.89,88.99086735]
[1734835596934,20.0,182.01,181.89,54.9702287]
[1734835597136,3.97,182.1,181.94,23.902374]
[1734835597332,3.97,182.1,181.93,20.0]
[1734835597333,1.03016877,182.13,182.01,57.79752265]
[1734835597574,8.67810207,182.14,182.04,34.02063865]
[1734835597735,8.67810207,182.14,182.06,23.776884]
[1734835597936,8.67810207,182.14,182.08,23.776884]
[1734835598464,8.67810207,182.14,182.1,23.776884]
[1734835598634,0.1952855,182.14,182.1,23.776884]
[1734835598963,0.1952855,182.14,182.09,0.82315403]
[1734835599170,0.1952855,182.14,182.07,0.82339729]
[1734835599337,0.1952855,182.14,182.08,23.776884]
[1734835600071,0.1952855,182.14,182.07,0.82339729]
[1734835600364,0.1952855,182.14,182.0,0.8233813]
[1734835601063,20.0,182.12,182.01,34.02063865]
[1734835601278,0.1952855,182.14,182.04,34.02063865]
[1734835601443,0.1952855,182.14,182.05,0.82335842]
[1734835601968,1.22480745,182.14,182.04,23.776884]
[1734835602276,0.1952855,182.14,182.04,23.776884]
[1734835602461,0.1952855,182.14,182.0,34.84409875]
[1734835602670,20.0,182.12,182.01,23.776884]
[1734835602872,1.02980471,182.11,182.01,23.776884]
[1734835603082,1.02980471,182.11,182.02,0.82381976]
[1734835603250,1.02980471,182.11,182.01,23.776884]
[1734835604579,1.3728,182.1,182.0,23.776884]
[1734835604755,1.0298852,182.09,182.0,23.776884]
[1734835604951,20.0,182.12,182.02,23.776884]
[1734835605164,20.0,182.12,182.04,23.776884]
[1734835605456,1.02969322,182.11,182.04,23.776884]
[1734835605658,1.02971431,182.13,182.04,23.776884]
[1734835607380,0.1952855,182.14,182.06,23.776884]
[1734835607777,1.22483019,182.14,182.06,23.776884]
[1734835607977,0.1952855,182.14,182.06,23.776884]
[1734835608687,0.1952855,182.14,182.05,0.82369116]
[1734835608849,1.22483452,182.14,182.02,0.82378644]
[1734835609056,20.0,182.1,181.96,34.02063865]
[1734835609287,1.02998309,182.09,181.97,0.82398647]
[1734835609970,23.776884,182.08,181.92,34.02063865]
[1734835610177,20.0,182.05,181.92,0.82418522]
[1734835610399,20.0,182.05,181.91,40.07043865]
[1734835610400,20.0,182.0,181.86,34.02063865]
[1734835610567,1.03057811,181.99,181.85,6.87426249]
[1734835610761,1.3737,181.98,181.85,6.87426249]
[1734835611092,1.03058629,181.97,181.85,6.87426249]
[1734835611287,1.03058629,181.97,181.85,40.89490114]
[1734835611598,1.03058629,181.97,181.85,6.87426249]
[1734835611906,0.10538091,181.86,181.85,6.87426249]
[1734835612067,0.10538091,181.86,181.85,30.65114649]
[1734835612266,0.10538091,181.86,181.85,0.82446249]
[1734835612467,0.10538091,181.86,181.83,0.82458534]
[1734835612764,0.10538091,181.86,181.81,0.8246959]
[1734835613178,0.10538091,181.86,181.77,0.8248445]
[1734835615194,0.10538091,181.86,181.8,23.776884]
[1734835615493,0.10538091,181.86,181.81,0.82479843]
[1734835616196,0.10538091,181.86,181.82,23.776884]
[1734835616486,0.10538091,181.86,181.84,23.776884]
[1734835616696,0.10538091,181.86,181.85,0.82459576]
[1734835617072,0.10538091,181.86,181.85,24.60147976]
[1734835617979,0.10538091,181.86,181.85,58.62211841]
[1734835618496,0.10538091,181.86,181.85,24.60147976]
[1734835619400,0.10538091,181.86,181.85,66.64400841]
[1734835620589,0.10538091,181.86,181.85,66.51851841]
[1734835620796,0.10538091,181.86,181.85,32.49787976]
[1734835620990,0.10538091,181.86,181.85,7.14359576]
[1734835621355,0.10538091,181.86,181.85,41.16423441]
[1734835621596,0.10150427,181.88,181.86,13.87229]
[1734835621764,4.27e-06,181.88,181.87,34.97022952]
[1734835623009,4.27e-06,181.88,181.87,34.84473952]
[1734835623214,4.27e-06,181.88,181.87,0.82410087]
[1734835623511,4.27e-06,181.88,181.87,34.84473952]
[1734835623719,4.27e-06,181.88,181.87,58.62162352]
[1734835624221,4.27e-06,181.88,181.87,24.60098487]
[1734835624379,4.27e-06,181.88,181.87,0.82410087]
[1734835624582,4.27e-06,181.88,181.86,0.82449278]
[1734835624780,4.27e-06,181.88,181.86,34.84513143]
[1734835624989,4.27e-06,181.88,181.86,0.82449278]
[1734835625196,4.27e-06,181.88,181.86,34.84513143]
[1734835625397,4.27e-06,181.88,181.87,34.02063865]
[1734835625690,4.27e-06,181.88,181.87,57.79752265]
[1734835626920,8.436e-05,181.89,181.87,57.92301265]
[1734835627224,7.6e-07,181.9,181.89,25.479774]
[1734835627400,7.6e-07,181.9,181.89,93.5210513]
[1734835627599,3.7e-06,181.91,181.9,57.92301265]
[1734835627811,3.7e-06,181.91,181.9,58.62158642]
[1734835628123,3.7e-06,181.91,181.9,58.74707642]
[1734835629592,8.857e-05,181.92,181.91,13.86849]
[1734835629926,7.819e-05,181.93,181.91,71.66601265]
[1734835630094,7.819e-05,181.93,181.92,58.6213897]
[1734835630296,7.819e-05,181.93,181.92,0.82386705]
[1734835631120,7.819e-05,181.93,181.91,34.84476254]
[1734835631327,7.819e-05,181.93,181.91,0.82412389]
[1734835631829,0.11758888,181.92,181.91,0.82412389]
[1734835632190,0.11758888,181.92,181.9,0.82422337]
[1734835632797,0.11758888,181.92,181.91,23.776884]
[1734835633030,0.11758888,181.92,181.88,0.82436864]
[1734835633236,0.11758888,181.92,181.86,0.82444686]
[1734835633416,0.11758888,181.92,181.83,0.82460849]
[1734835634402,0.11758888,181.92,181.85,34.02063865]
[1734835634712,0.11758888,181.92,181.86,0.82441755]
[1734835634916,0.11758888,181.92,181.87,34.02063865]
[1734835635115,0.11758888,181.92,181.89,23.776884]
[1734835635296,0.11758888,181.92,181.9,0.82442278]
[1734835635599,0.11758888,181.92,181.87,0.82442234]
[1734835636639,0.11758888,181.92,181.88,0.82448943]
[1734835637338,0.11758888,181.92,181.89,23.776884]
[1734835637542,0.11758888,181.92,181.91,23.776884]
[1734835638043,0.11758888,181.92,181.91,57.79752265]
[1734835638407,0.11758888,181.92,181.91,58.62162854]
[1734835639325,0.11758888,181.92,181.91,58.74711854]
[1734835639834,0.11758888,181.92,181.91,58.24711854]
[1734835640318,0.11758888,181.92,181.91,58.12162854]
[1734835640633,0.11758888,181.92,181.91,24.10098989]
[1734835641416,0.11758888,181.92,181.91,0.82410589]
[1734835641609,0.11758888,181.92,181.9,0.82423121]
[1734835642841,0.11758888,181.92,181.91,23.776884]
[1734835643717,0.11758888,181.92,181.91,24.60117217]
[1734835644749,0.11758888,181.92,181.91,58.62181082]
[1734835645041,8.888e-05,181.92,181.91,58.74730082]
[1734835645838,9.442e-05,181.93,181.92,0.12549]
[1734835646015,7.843e-05,181.94,181.92,57.92301265]
[1734835646206,5.836e-05,181.95,181.94,23.902374]
[1734835646543,9.238e-05,181.96,181.94,65.61881265]
[1734835646744,1.508e-05,181.97,181.96,23.902374]
[1734835646904,1.508e-05,181.97,181.96,57.92301265]
[1734835647520,1.508e-05,181.97,181.96,23.776884]
[1734835650161,1.508e-05,181.97,181.96,57.79752265]
[1734835650332,1.508e-05,181.97,181.96,57.92301265]
[1734835651755,0.11671955,181.97,181.96,57.92301265]
[1734835652144,0.11670447,181.97,181.96,57.92301265]